Workbook

Sheet Detailed LCOE Calculator
B2: Technology | E2: 1 | G2: =INDEX(I2:S2,$E$2) -> Project 1 | I2: Project 1 | J2: Project 2 | K2: Project 3 | L2: Project 4
B4: Real LCOE | G4: =G83 -> 21.08440745 | I4: =I83 -> 21.08440745 | J4: =J83 -> 21.07195234 | K4: =K83 -> 21.07195234 | L4: =L83 -> 19.0606168
C6: Annual Production | E6: Quantity | G6: =INDEX(I6:S6,$E$2) -> 160 | I6: 160 | J6: 160 | K6: 160 | L6: 160
C7: Total Capital Cost | E7: USD | G7: =INDEX(I7:S7,$E$2) -> 50500 | I7: 50500 | J7: 50500 | K7: 50500 | L7: 50500
B9: Carrying Charge Analysis
C10: Project Life | E10: Yr | G10: =INDEX(I10:S10,$E$2) -> 30 | I10: 30 | J10: 30 | K10: 30 | L10: 30
C11: Tax Life | E11: Yr | G11: =INDEX(I11:S11,$E$2) -> 5 | I11: 5 | J11: 5 | K11: 5 | L11: 5
C12: Income Tax Rate | E12: % | G12: =INDEX(I12:S12,$E$2) -> 0.3 | I12: 0.3 | J12: 0.3 | K12: 0.3 | L12: 0.3
C13: Variable Declining Balance Factor (1-St Line) | E13: Factor | G13: =INDEX(I13:S13,$E$2) -> 1 | I13: 1 | J13: 1 | K13: 1 | L13: 1
C14: Debt to Captial | E14: % | G14: =INDEX(I14:S14,$E$2) -> 0.8 | I14: 0.8 | J14: 0.8 | K14: 0.8 | L14: 0.8
C15: Target Equity IRR | E15: % | G15: =INDEX(I15:S15,$E$2) -> 0.075 | I15: 0.075 | J15: 0.075 | K15: 0.075 | L15: 0.075
C16: Cost of Debt | E16: % | G16: =INDEX(I16:S16,$E$2) -> 0.032 | I16: 0.032 | J16: 0.032 | K16: 0.032 | L16: 0.032
C17: After Cost of Debt | E17: % | G17: =INDEX(I17:S17,$E$2) -> 0.0224 | I17: =I16*(1-I12) -> 0.0224 | J17: =J16*(1-J12) -> 0.0224 | K17: =K16*(1-K12) -> 0.0224 | L17: =L16*(1-L12) -> 0.0224
C18: WACC | E18: % | G18: =INDEX(I18:S18,$E$2) -> 0.03292 | I18: =I17*I14+I15*(1-I14) -> 0.03292 | J18: =J17*J14+J15*(1-J14) -> 0.03292 | K18: =K17*K14+K15*(1-K14) -> 0.03292 | L18: =L17*L14+L15*(1-L14) -> 0.03292
C20: Required Nominal Project IRR | E20: % p.a. | G20: =INDEX(I20:S20,$E$2) -> 0.03292 | I20: =I18 -> 0.03292 | J20: =J18 -> 0.03292 | K20: =K18 -> 0.03292 | L20: =L18 -> 0.03292
C22: Inflation | E22: % p.a. | G22: =INDEX(I22:S22,$E$2) -> 0.02 | I22: 0.02 | J22: 0.02 | K22: 0.02 | L22: 0.02
C23: Degradation | E23: % p.a. | G23: =INDEX(I23:S23,$E$2) -> 0.005 | I23: 0.005 | J23: 0.005 | K23: 0.005 | L23: 0.005
C24: Tax Shield Value | E24: % | G24: =INDEX(I24:S24,$E$2) -> 0.2638214004 | I24: =tax_dep_shield(I11,I13,I20,I12) -> 0.2638214004 | J24: =tax_dep_shield(J11,J13,J20,J12) -> 0.2638214004 | K24: =tax_dep_shield(K11,K13,K20,K12) -> 0.2638214004 | L24: =tax_dep_shield(L11,L13,L20,L12) -> 0.2638214004
C26: Levelizing Factor with PMT | E26: % | G26: =INDEX(I26:S26,$E$2) -> 0.05296368708 | I26: =PMT(I20,I10,-1) -> 0.05296368708 | J26: =PMT(J20,J10,-1) -> 0.05296368708 | K26: =PMT(K20,K10,-1) -> 0.05296368708 | L26: =PMT(L20,L10,-1) -> 0.05296368708
C27: Capital Recovery Pre-Tax | E27: USD/yr | G27: =INDEX(I27:S27,$E$2) -> 2674.666197 | I27: =I26*I7 -> 2674.666197 | J27: =J26*J7 -> 2674.666197 | K27: =K26*K7 -> 2674.666197 | L27: =L26*L7 -> 2674.666197
C29: Capital Cost Recovery Base | E29: USD/yr | G29: =INDEX(I29:S29,$E$2) -> 2674.666197 | I29: =I26*I7 -> 2674.666197 | J29: =J26*J7 -> 2674.666197 | K29: =K26*K7 -> 2674.666197 | L29: =L26*L7 -> 2674.666197
C30: IRR Adjusted for Degradation | E30: % p.a. | G30: =INDEX(I30:S30,$E$2) -> 0.03811055276 | I30: =(1+I20)/(1-I23)-1 -> 0.03811055276 | J30: 0.03811055276 | K30: 0.03811055276 | L30: 0.03811055276
C31: Nominal Levelizing Factor with Degradation | E31: % p.a. | G31: =INDEX(I31:S31,$E$2) -> 0.05651077627 | I31: =PMT(I30,I10,-1) -> 0.05651077627 | J31: =PMT(J30,J10,-1) -> 0.05651077627 | K31: =PMT(K30,K10,-1) -> 0.05651077627 | L31: =PMT(L30,L10,-1) -> 0.05651077627
C32: PMT Factor Adjusted for Paying Taxes | E32: % p.a. | G32: =INDEX(I32:S32,$E$2) -> 0.08072968039 | I32: =I31/(1-I12) -> 0.08072968039 | J32: =J31/(1-J12) -> 0.08072968039 | K32: =K31/(1-K12) -> 0.08072968039 | L32: =L31/(1-L12) -> 0.08072968039
C33: PMT Factor Adjust for Tax Depreciation Shield | E33: % p.a. | G33: =INDEX(I33:S33,$E$2) -> 0.05943146305 | I33: =I32*(1-I24) -> 0.05943146305 | J33: =J32*(1-J24) -> 0.05943146305 | K33: =K32*(1-K24) -> 0.05943146305 | L33: =L32*(1-L24) -> 0.05943146305
C35: Construction Timing | E35: Year | I35: 1 | J35: 1 | K35: 1 | L35: 1
C36: Construction Factor | E36: Factor | I36: =FV(I20,I35,-1/I35) -> 1 | J36: 1 | K36: 1 | L36: 1
C37: Capital Cost Recovery with Degradation | E37: USD/yr | G37: =INDEX(I37:S37,$E$2) -> 3001.288884 | I37: =I33*I7*I36 -> 3001.288884 | J37: =J33*J7*J36 -> 3001.288884 | K37: =K33*K7*K36 -> 3001.288884 | L37: =L33*L7*L36 -> 3001.288884
C39: Real IRR | E39: % p.a. | G39: =INDEX(I39:S39,$E$2) -> 0.01266666667 | I39: =(1+I20)/(1+I22)-1 -> 0.01266666667 | J39: 0.01266666667 | K39: 0.01266666667 | L39: 0.01266666667
C40: Levelizing Factor with Real IRR | E40: % p.a. | G40: =INDEX(I40:S40,$E$2) -> 0.01775544389 | I40: =(1+I39)/(1-I23)-1 -> 0.01775544389 | J40: 0.01775544389 | K40: 0.01775544389 | L40: 0.01775544389
C41: Real IRR Adjusted for Degradation | E41: % p.a. | G41: =INDEX(I41:S41,$E$2) -> 0.01775544389 | I41: =(1+I39)/(1-I23)-1 -> 0.01775544389 | J41: 0.01775544389 | K41: 0.01775544389 | L41: 0.01775544389
C42: Levelizing Factor with Real IRR and Degradation | E42: % p.a. | G42: =INDEX(I42:S42,$E$2) -> 0.04328372983 | I42: =PMT(I41,I10,-1) -> 0.04328372983 | J42: =PMT(J41,J10,-1) -> 0.04328372983 | K42: =PMT(K41,K10,-1) -> 0.04328372983 | L42: =PMT(L41,L10,-1) -> 0.04328372983
C44: Adj for Tax on Inc (Divide by (1-t)) | E44: % | G44: =INDEX(I44:S44,$E$2) -> 0.06183389975 | I44: =I42/(1-I12) -> 0.06183389975 | J44: =J42/(1-J12) -> 0.06183389975 | K44: =K42/(1-K12) -> 0.06183389975 | L44: =L42/(1-L12) -> 0.06183389975
C45: Adj for Tax Shield | E45: % | G45: =INDEX(I45:S45,$E$2) -> 0.04552079373 | I45: =I44*(1-I24) -> 0.04552079373 | J45: 0.04552079373 | K45: 0.04552079373 | L45: 0.04552079373
C47: Construction Real | E47: Factor | I47: 1 | J47: 1 | K47: 1 | L47: 1
C48: Final Real Capital Cost Recovery with Degradation | E48: USD/yr | G48: =INDEX(I48:S48,$E$2) -> 2298.800083 | I48: =I45*I7 -> 2298.800083 | J48: =J45*J7 -> 2298.800083 | K48: =K45*K7 -> 2298.800083 | L48: =L45*L7 -> 2298.800083
B50: Operating Cost Analysis
C51: Total Operating Costs | E51: USD/yr | G51: =INDEX(I51:S51,$E$2) -> 1000 | I51: 1000 | J51: 1000 | K51: 1000 | L51: 700
C53: Degradation for Input Cost (eg electricity input) | E53: % | G53: =INDEX(I53:S53,$E$2) -> 0.005 | I53: 0.005 | J53: 0.005 | K53: 0.005 | L53: 0.005
C55: Nominal IRR | E55: % p.a. | G55: =INDEX(I55:S55,$E$2) -> 0.03292 | I55: =I20 -> 0.03292 | J55: =J20 -> 0.03292 | K55: 0.03292 | L55: 0.03292
C56: Real IRR | E56: % p.a. | G56: =INDEX(I56:S56,$E$2) -> 0.01266666667 | I56: =I39 -> 0.01266666667 | J56: =J39 -> 0.01266666667 | K56: 0.01266666667 | L56: 0.01266666667
C57: Nominal Adjusted for Degradation | E57: % p.a. | G57: =INDEX(I57:S57,$E$2) -> 0.03811055276 | I57: =(1+I55)/(1-I53)-1 -> 0.03811055276 | J57: =(1+J55)/(1-J53)-1 -> 0.03811055276 | K57: 0.03811055276 | L57: 0.03811055276
C59: Inflation Factor for Nominal Cost | E59: Factor | G59: =INDEX(I59:S59,$E$2) -> 1.315051761 | I59: =PV(I56,I10,-1)/PV(I55,I10,-1) -> 1.315051761 | J59: =PV(J56,J10,-1)/PV(J55,J10,-1) -> 1.315051761 | K59: 1.315051761 | L59: 1.315051761
C60: Degradation Factor for Nominal Cost | E60: Factor | G60: =INDEX(I60:S60,$E$2) -> 1.403123535 | I60: =PV(I56,I10,-1)/PV(I57,I10,-1) -> 1.403123535 | J60: =PV(J56,J10,-1)/PV(J57,J10,-1) -> 1.403123535 | K60: 1.403123535 | L60: 1.403123535
C61: Adjusted Nominal Cost for LCOE Calc | E61: USD/yr | G61: =INDEX(I61:S61,$E$2) -> 1403.123535 | I61: =I60*I51 -> 1403.123535 | J61: =J60*J51 -> 1403.123535 | K61: =K60*K51 -> 1403.123535 | L61: =L60*L51 -> 982.1864744
C63: Real IRR without Degradation | E63: % p.a. | G63: =INDEX(I63:S63,$E$2) -> 0.01266666667 | I63: =I39 -> 0.01266666667 | J63: =(1+J39)/(1-J53)-1 -> 0.01775544389 | K63: =(1+K39)/(1-K53)-1 -> 0.01775544389 | L63: =(1+L39)/(1-L53)-1 -> 0.01775544389
C64: Real IRR with Degradation | E64: % p.a. | G64: =INDEX(I64:S64,$E$2) -> 0.01775544389 | I64: =(1+I63)/(1-I53)-1 -> 0.01775544389 | J64: =(1+J63)/(1-J53)-1 -> 0.02286979285 | K64: =(1+K63)/(1-K53)-1 -> 0.02286979285 | L64: =(1+L63)/(1-L53)-1 -> 0.02286979285
C65: Degradation Factor for Real Cost | E65: Factor | G65: =INDEX(I65:S65,$E$2) -> 1.074705109 | I65: =PV(I63,I10,-1)/PV(I64,I10,-1) -> 1.074705109 | J65: =PV(J63,J10,-1)/PV(J64,J10,-1) -> 1.072712292 | K65: =PV(K63,K10,-1)/PV(K64,K10,-1) -> 1.072712292 | L65: =PV(L63,L10,-1)/PV(L64,L10,-1) -> 1.072712292
C66: Adjusted Real Cost of LOCE | E66: USD/yr | G66: =INDEX(I66:S66,$E$2) -> 1074.705109 | I66: =I51*I65 -> 1074.705109 | J66: =J51*J65 -> 1072.712292 | K66: =K51*K65 -> 1072.712292 | L66: =L51*L65 -> 750.8986042
B68: LCOE Calculation
C69: Nominal Capital Recovery | E69: USD/yr | G69: =INDEX(I69:S69,$E$2) -> 3001.288884 | I69: =I37 -> 3001.288884 | J69: =J37 -> 3001.288884 | K69: =K37 -> 3001.288884 | L69: =L37 -> 3001.288884
C70: Nominal O&M Cost | E70: USD/yr | G70: =INDEX(I70:S70,$E$2) -> 1403.123535 | I70: =I61 -> 1403.123535 | J70: =J61 -> 1403.123535 | K70: =K61 -> 1403.123535 | L70: =L61 -> 982.1864744
C71: Total Nominal Cost | E71: USD/yr | G71: =INDEX(I71:S71,$E$2) -> 4404.412419 | I71: =SUM(I69:I70) -> 4404.412419 | J71: =SUM(J69:J70) -> 4404.412419 | K71: =SUM(K69:K70) -> 4404.412419 | L71: =SUM(L69:L70) -> 3983.475359
C73: Total Production | E73: Units per Year | G73: =INDEX(I73:S73,$E$2) -> 160 | I73: =I6 -> 160 | J73: =J6 -> 160 | K73: =K6 -> 160 | L73: =L6 -> 160
C74: LCOE - Nominal | E74: USD/Unit Year | G74: =INDEX(I74:S74,$E$2) -> 27.52757762 | I74: =IFERROR(I71/I73,FALSE) -> 27.52757762 | J74: =IFERROR(J71/J73,FALSE) -> 27.52757762 | K74: =IFERROR(K71/K73,FALSE) -> 27.52757762 | L74: =IFERROR(L71/L73,FALSE) -> 24.89672099
C75: LCOE - Nominal | E75: USD/Unit Year x 1000 | G75: =INDEX(I75:S75,$E$2) -> 27527.57762 | I75: =I74*1000 -> 27527.57762 | J75: =J74*1000 -> 27527.57762 | K75: =K74*1000 -> 27527.57762 | L75: =L74*1000 -> 24896.72099
C77: Capital Recovery - Real | E77: USD/yr | G77: =INDEX(I77:S77,$E$2) -> 2298.800083 | I77: =I48 -> 2298.800083 | J77: =J48 -> 2298.800083 | K77: =K48 -> 2298.800083 | L77: =L48 -> 2298.800083
C78: O&M Cost | E78: USD/yr | G78: =INDEX(I78:S78,$E$2) -> 1074.705109 | I78: =I66 -> 1074.705109 | J78: =J66 -> 1072.712292 | K78: =K66 -> 1072.712292 | L78: =L66 -> 750.8986042
C79: Total Cost | E79: USD/yr | G79: =INDEX(I79:S79,$E$2) -> 3373.505193 | I79: =SUM(I77:I78) -> 3373.505193 | J79: =SUM(J77:J78) -> 3371.512375 | K79: =SUM(K77:K78) -> 3371.512375 | L79: =SUM(L77:L78) -> 3049.698687
C81: Total Production | E81: Units per Year | G81: =INDEX(I81:S81,$E$2) -> 160 | I81: =I73 -> 160 | J81: =J73 -> 160 | K81: =K73 -> 160 | L81: =L73 -> 160
C82: LCOE - Real | E82: USD/Units Year | G82: =INDEX(I82:S82,$E$2) -> 21.08440745 | I82: =IFERROR(I79/I81,FALSE) -> 21.08440745 | J82: =IFERROR(J79/J81,FALSE) -> 21.07195234 | K82: =IFERROR(K79/K81,FALSE) -> 21.07195234 | L82: =IFERROR(L79/L81,FALSE) -> 19.0606168
C83: LCOE - Real | E83: USD/Units Year x 1000 | G83: =INDEX(I83:S83,$E$2) -> 21.08440745 | I83: =I82 -> 21.08440745 | J83: =J82 -> 21.07195234 | K83: 21.07195234 | L83: 19.0606168
B86: Financing Assumptions
C87: Max Debt to Capital | G87: =INDEX(I87:S87,$E$2) -> 0.85 | I87: 0.85 | J87: 0.85 | K87: 0.85 | L87: 0.85
C88: Interest Rate | G88: =INDEX(I88:S88,$E$2) -> 0.03 | I88: 0.03 | J88: 0.03 | K88: 0.03 | L88: 0.03
C89: Debt Tenor | G89: =INDEX(I89:S89,$E$2) -> 20 | I89: 20 | J89: 20 | K89: 20 | L89: 20
C90: P50 DSCR | G90: =INDEX(I90:S90,$E$2) -> 1.2 | I90: 1.2 | J90: 1.2 | K90: 1.2 | L90: 1.2
C91: P99 DSCR | G91: =INDEX(I91:S91,$E$2) -> 1 | I91: 1 | J91: 1 | K91: 1 | L91: 1
C93: Target Equity IRR | G93: =INDEX(I93:S93,$E$2) -> 0.08 | I93: 0.08 | J93: 0.08 | K93: 0.08 | L93: 0.08
